bitfinex-derivatives/quotes_SOLF0:USTF0_20250823
["timestamp","ask_amount","ask_price","bid_price","bid_amount"]
[1755919116777,5.0507,198.08,198.02,4.78768035]
[1755919117077,5.0507,198.08,198.01,7.8222]
[1755919117376,5.0507,198.08,198.02,4.78756373]
[1755919117572,5.0509,198.07,198.01,7.8222]
[1755919117783,5.0509,198.07,198.02,4.79096344]
[1755919118080,5.0509,198.07,198.02,2.77]
[1755919120383,7.7909,198.07,198.02,2.77]
[1755919122582,5.0504,198.09,198.03,7.56029679]
[1755919122786,5.0504,198.09,198.05,2.77]
[1755919122979,5.0504,198.09,198.06,2.77]
[1755919124184,5.0504,198.09,198.02,7.8219]
[1755919124385,5.0504,198.09,198.03,4.78953781]
[1755919124582,5.0504,198.09,198.04,4.78950699]
[1755919124885,7.7904,198.09,198.04,2.77]
[1755919125380,7.7904,198.09,198.05,2.77]
[1755919128881,2.74,198.14,198.06,2.77]
[1755919129084,2.74,198.14,198.07,4.79271946]
[1755919129287,2.74,198.18,198.08,9.55364458]
[1755919129590,2.74,198.18,198.09,4.79271946]
[1755919129785,2.74,198.18,198.1,4.79271946]
[1755919129982,2.74,198.18,198.08,2.77]
[1755919130181,2.74,198.18,198.09,4.79220651]
[1755919130387,2.74,198.18,198.08,2.77]
[1755919130584,2.74,198.18,198.09,4.79466212]
[1755919130883,5.0494,198.13,198.04,2.77]
[1755919131088,2.74,198.13,198.05,6.78703463]
[1755919131291,2.74,198.13,198.06,4.79472276]
[1755919131486,2.74,198.13,198.07,4.79472276]
[1755919131682,2.74,198.13,198.04,2.77]
[1755919131882,2.74,198.13,198.05,6.79102456]
[1755919132085,2.74,198.13,198.06,6.79102456]
[1755919132389,2.74,198.13,198.07,4.79750904]
[1755919132589,2.74,198.13,198.04,2.77]
[1755919132784,2.74,198.13,198.05,4.80026902]
[1755919132980,5.0504,198.09,198.06,4.80026902]
[1755919133185,27.9878,198.12,197.98,179.50761517]
[1755919133387,2.74,198.11,197.99,4.80172054]
[1755919133584,2.74,198.11,198.0,4.80172054]
[1755919133890,2.74,198.08,197.97,2.77]
[1755919134086,2.74,198.08,197.98,4.80464943]
[1755919134286,2.74,198.08,197.99,4.80464943]
[1755919134484,5.052,198.03,197.97,2.77]
[1755919134686,5.052,198.03,197.98,4.79116419]
[1755919134880,2.74,198.02,197.99,4.79116419]
[1755919135079,2.74,198.02,197.97,2.77]
[1755919135284,2.74,198.02,197.98,4.78796534]
[1755919135484,2.74,198.02,197.99,4.78796534]
[1755919135685,2.74,198.02,197.97,2.77]
[1755919135887,2.74,198.02,197.98,4.78914497]
[1755919136087,2.74,198.02,197.99,4.78914497]
[1755919136490,2.74,198.02,197.97,2.77]
[1755919136693,7.7922,198.02,197.98,4.79069927]
[1755919136890,7.7922,198.02,197.97,2.77]
[1755919137090,2.74,198.01,197.93,347.3643]
[1755919137393,2.74,198.0,197.94,4.79087225]
[1755919137587,2.74,198.0,197.82,339.5]
[1755919137890,2.74,198.0,197.85,2.77]
[1755919138095,2.74,198.0,197.86,11.10187906]
[1755919138287,5.054,197.95,197.87,6.79242481]
[1755919138488,5.054,197.95,197.83,25.2846]
[1755919138489,2.74,197.98,197.88,9.56242481]
[1755919138689,2.74,197.98,197.89,6.79242481]
[1755919138994,2.74,197.98,197.88,2.77]
[1755919138995,2.74,197.98,197.9,4.79412481]
[1755919139295,2.74,197.98,197.88,2.77]
[1755919139594,5.0538,197.96,197.89,4.78767195]
[1755919139896,5.0538,197.96,197.9,4.78767195]
[1755919140084,5.0538,197.96,197.88,2.77]
[1755919140282,5.0538,197.96,197.82,466.26]
[1755919140283,2.74,197.95,197.85,2.77]
[1755919140483,2.74,197.95,197.86,6.78439473]
[1755919140683,2.74,197.95,197.87,4.7882662]
[1755919140889,2.74,197.92,197.85,2.77]
[1755919141085,2.74,197.92,197.81,126.76]
[1755919141086,2.74,197.92,197.81,129.53]
[1755919141288,2.74,197.92,197.82,4.78975951]
[1755919141489,2.74,197.92,197.83,6.78532102]
[1755919141688,2.74,197.92,197.81,129.53]
[1755919141689,2.74,197.92,197.84,4.78975951]
[1755919141998,2.74,197.92,197.81,129.53]
[1755919142186,2.74,197.92,197.82,4.78388596]
[1755919142392,0.03455947,197.9,197.84,2.77]
[1755919142693,0.03455947,197.9,197.85,4.78388596]
[1755919142892,0.03455947,197.9,197.88,2.77]
[1755919144890,0.03455947,197.9,197.86,2.69]
[1755919145291,2.7,197.89,197.85,0.03367116]
[1755919146794,0.03455947,197.9,197.86,2.69]
[1755919146991,0.03455947,197.9,197.88,2.69]
[1755919154907,0.03455947,197.9,197.85,0.03367116]
[1755919155207,2.7,197.89,197.85,0.03367116]
[1755919155513,2.7,197.88,197.85,0.03367116]
[1755919155904,0.03455947,197.9,197.86,2.69]
[1755919156108,2.7,197.89,197.85,0.03367116]
[1755919156713,2.7,197.89,197.85,2.72367116]
[1755919159014,0.03455947,197.9,197.86,2.69]
[1755919159619,2.73455947,197.9,197.86,2.69]
[1755919161221,0.03455947,197.9,197.85,0.03367116]
[1755919161417,0.03455947,197.9,197.88,2.69]
[1755919161613,0.03455947,197.9,197.89,2.69]
[1755919164222,0.03455947,197.9,197.87,2.69]
[1755919166215,2.7,197.89,197.85,0.03367116]
[1755919166819,2.7,197.88,197.85,0.03367116]
[1755919168824,5.0555,197.89,197.85,0.03367116]
[1755919169020,5.0555,197.89,197.86,2.69]
[1755919169323,5.0555,197.89,197.85,0.03367116]
[1755919169524,2.7,197.87,197.85,0.03367116]
[1755919170518,5.0558,197.88,197.85,0.03367116]
[1755919170716,7.7558,197.88,197.85,0.03367116]
[1755919170920,5.0558,197.88,197.85,0.03367116]
[1755919171322,7.7558,197.88,197.85,0.03367116]
[1755919173319,2.65,197.87,197.85,0.03367116]
[1755919175835,0.03455947,197.9,197.86,2.75]
[1755919176133,2.68455947,197.9,197.86,2.75]
[1755919178829,2.68455947,197.9,197.87,2.75]
[1755919179031,0.03455947,197.9,197.87,2.75]
[1755919179229,0.03455947,197.9,197.88,2.75]
[1755919179927,0.03455947,197.9,197.86,2.75]
[1755919180134,2.68455947,197.9,197.86,2.75]
[1755919180427,0.03455947,197.9,197.88,2.75]
[1755919180929,0.03455947,197.9,197.89,2.75]
[1755919182229,0.03455947,197.9,197.87,5.0558]
[1755919182431,0.03455947,197.9,197.89,2.75]
[1755919183530,0.03455947,197.9,197.89,7.43110038]
[1755919183933,2.65,197.98,197.9,2.75]
[1755919184133,2.65,198.01,197.92,2.75]
[1755919184425,2.65,198.01,197.94,2.75]
[1755919184633,2.65,198.01,197.95,4.68007802]
[1755919184930,2.65,198.01,197.96,7.43007802]
[1755919185131,2.65,198.01,197.97,2.75]
[1755919185734,2.65,198.0,197.96,0.03368788]
[1755919186036,2.65,198.0,197.97,2.75]
[1755919186432,2.65,198.0,197.96,0.03368788]
[1755919187133,2.65,198.0,197.96,2.78368788]
[1755919188834,25.2529,198.08,197.96,2.78368788]
[1755919188835,282.7236,198.17,197.97,2.75]
[1755919189040,2.65,198.1,197.98,4.62540619]
[1755919189239,2.65,198.1,197.97,2.75]
[1755919189630,2.65,198.07,198.02,0.03238747]
[1755919189932,2.65,198.09,198.02,0.03238747]
[1755919190738,2.65,198.07,198.02,0.03238747]
[1755919192538,5.0517,198.04,198.02,0.03238747]
[1755919192735,2.65,198.03,198.02,0.03238747]
[1755919193033,9.68062737,198.08,198.02,0.03238747]
[1755919193237,2.65,198.07,198.02,0.03238747]
[1755919193439,2.65,198.03,198.02,0.03238747]
[1755919193830,2.65,198.03,197.96,2.75]
[1755919193831,10.18062737,198.03,197.89,2.75]
[1755919194037,2.65,197.97,197.9,9.34766246]
[1755919194336,2.65,197.97,197.86,2.75]
[1755919194540,5.0538,197.95,197.86,2.75]
[1755919195332,2.65,197.94,197.86,2.75]
[1755919195540,5.0544,197.93,197.86,2.75]
[1755919201139,5.0551,197.91,197.8,2.75]
[1755919201337,5.0551,197.91,197.7,25.3002]
[1755919201338,2.65,197.9,197.81,4.62333198]
[1755919201538,2.65,197.88,197.67,2.75]
[1755919201732,5.0572,197.82,197.69,2.75]
[1755919201932,5.0572,197.82,197.71,2.75]
[1755919202137,5.0572,197.82,197.73,2.75]
[1755919202737,2.65,197.84,197.73,2.75]
[1755919205155,2.65,197.84,197.7,25.3011]
[1755919205342,2.69,197.88,197.73,25.2972]
[1755919205538,2.69,197.88,197.75,2.81]
[1755919205749,2.69,197.88,197.8,2.81]
[1755919206043,2.69,197.92,197.82,2.81]
[1755919206746,2.69,197.92,197.83,5.0568]
[1755919208649,7.7446,197.92,197.83,5.0568]
[1755919209353,7.7446,197.92,197.76,25.2936]
[1755919209354,2.69,197.87,197.73,2.81]
[1755919209643,2.69,197.87,197.74,4.76160617]
[1755919209846,2.69,197.83,197.73,2.81]
[1755919210152,2.69,197.83,197.74,4.76274809]
[1755919210348,2.69,197.83,197.73,2.81]
[1755919210547,2.69,197.83,197.74,4.76084144]
[1755919210847,2.69,197.83,197.73,2.81]
[1755919211047,2.69,197.83,197.74,4.76041404]
[1755919211248,2.69,197.88,197.74,2.81]
[1755919211451,2.69,197.88,197.76,2.81]
[1755919211851,2.69,197.88,197.77,5.0584]
[1755919212052,2.69,197.88,197.78,2.81]
[1755919212454,2.69,197.92,197.8,2.81]
[1755919213047,5.0549,197.91,197.8,2.81]
[1755919213948,2.69,197.92,197.82,2.81]
[1755919214853,2.69,197.92,197.83,5.0568]
[1755919215855,2.69,197.96,197.86,2.81]
[1755919218749,2.69,197.92,197.78,2.81]
[1755919219654,5.0554,197.89,197.78,2.81]
[1755919220352,5.0554,197.89,197.78,7.8679]
[1755919220654,7.7454,197.89,197.78,7.8679]
[1755919220855,5.0558,197.88,197.78,7.8679]
[1755919221149,2.69,197.89,197.78,2.81]
[1755919222157,2.69,197.84,197.74,2.81]
[1755919222455,2.69,197.84,197.68,2.81]
[1755919222652,5.0581,197.79,197.69,9.81384087]
[1755919222858,7.7481,197.79,197.7,4.75334087]
[1755919223052,7.7481,197.79,197.69,5.0605]
[1755919223253,7.7481,197.79,197.7,9.81363663]
[1755919223457,7.7481,197.79,197.7,5.06]
[1755919223753,25.2782,197.88,197.68,2.81]
[1755919223754,2.69,197.84,197.68,2.81]
[1755919223948,25.2782,197.88,197.71,2.81]
[1755919223949,2.69,197.88,197.71,2.81]
[1755919224148,2.69,197.88,197.72,4.7514439]
[1755919224347,5.0564,197.85,197.76,5.0585]
[1755919224852,5.0571,197.83,197.74,5.0591]
[1755919225446,5.0571,197.83,197.75,5.0587]
[1755919226553,2.69,197.84,197.73,7.8694]
[1755919227155,2.69,197.84,197.74,5.059]
[1755919227758,7.7469,197.84,197.73,2.81]
[1755919228050,7.7469,197.84,197.72,25.2986]
[1755919228255,7.7469,197.84,197.73,7.55638957]
[1755919228451,7.7469,197.84,197.73,2.81]
[1755919228654,5.057,197.83,197.74,5.0591]
[1755919229357,2.69,197.84,197.73,2.81]
[1755919230553,5.0576,197.81,197.73,7.8693]
[1755919230753,2.69,197.84,197.73,2.81]
[1755919231552,5.0573,197.82,197.74,5.059]
[1755919232150,2.69,197.81,197.74,5.059]
[1755919232954,5.0567,197.84,197.75,2.81]
[1755919233759,5.057,197.83,197.76,5.0584]
[1755919234062,2.69,197.85,197.75,2.81]
[1755919234663,2.79,197.79,197.72,5.0596]
[1755919234862,2.79,197.79,197.73,4.75018332]
[1755919235063,2.79,197.79,197.72,5.0596]
[1755919235264,7.8479,197.79,197.72,5.0596]
[1755919235564,25.282,197.85,197.73,4.75258621]
[1755919235565,2.79,197.83,197.73,4.75258621]
[1755919235760,2.79,197.83,197.74,7.42258621]
[1755919235958,2.79,197.83,197.75,4.75258621]
[1755919236264,2.79,197.83,197.74,2.67]
[1755919236562,5.0574,197.81,197.75,4.80456835]
[1755919236765,5.0574,197.81,197.74,7.729]
[1755919236965,5.0574,197.81,197.75,4.80527817]
[1755919237165,2.79,197.83,197.74,2.67]
[1755919237166,5.0577,197.8,197.74,2.67]
[1755919237365,2.79,197.79,197.75,4.80633437]
[1755919237663,2.79,197.79,197.74,2.67]
[1755919237860,2.79,197.79,197.75,4.80972482]
[1755919238063,2.79,197.79,197.74,2.67]
[1755919238265,2.79,197.79,197.75,4.81099956]
[1755919238469,2.79,197.79,197.76,4.81099956]
[1755919238658,2.79,197.79,197.74,2.67]
[1755919238868,2.79,197.79,197.75,4.81481661]
[1755919239059,2.79,197.79,197.76,4.81481661]
[1755919239259,2.79,197.79,197.73,7.7292]
[1755919239464,2.79,197.79,197.74,4.81678476]
[1755919239662,2.79,197.79,197.75,4.81678476]
[1755919239864,2.79,197.79,197.76,4.81678476]
[1755919240064,2.79,197.79,197.73,7.7292]
[1755919240260,2.79,197.79,197.74,4.81569892]
[1755919240461,2.79,197.79,197.75,7.48569892]
[1755919240661,2.79,197.79,197.76,4.81569892]
[1755919240957,2.79,197.79,197.77,4.81569892]
[1755919241161,2.79,197.79,197.75,2.67]
[1755919241363,5.0572,197.82,197.76,4.8212802]
[1755919241572,5.0572,197.82,197.78,2.67]
[1755919241770,7.8472,197.82,197.78,2.67]
[1755919242070,7.8472,197.82,197.76,5.0585]
[1755919242262,2.79,197.81,197.77,4.818383]
[1755919242462,2.79,197.81,197.78,4.818383]
[1755919242667,2.79,197.81,197.76,7.7285]
[1755919242975,2.79,197.89,197.78,2.67]
[1755919243168,2.79,197.89,197.8,2.67]
[1755919243472,2.79,197.89,197.81,4.81851327]
[1755919243672,2.79,197.89,197.82,4.81851327]
[1755919243872,2.79,197.89,197.83,4.81851327]
[1755919244078,2.79,197.89,197.8,2.67]
[1755919244279,2.79,197.89,197.81,4.81329614]
[1755919244575,5.0559,197.87,197.8,7.7275]
[1755919244774,5.0559,197.87,197.81,4.81476216]
[1755919244975,2.79,197.88,197.76,2.67]
[1755919245175,2.79,197.88,197.77,4.81759922]
[1755919245369,2.79,197.88,197.78,4.81759922]
[1755919245577,2.79,197.86,197.79,4.81759922]
[1755919245776,2.79,197.86,197.76,2.67]
[1755919245972,2.79,197.86,197.77,4.8178878]
[1755919246178,5.0571,197.83,197.78,7.4878878]
[1755919246379,5.0571,197.83,197.79,4.8178878]
[1755919246575,2.79,197.85,197.79,2.67]
[1755919247077,2.79,197.89,197.8,4.81512195]
[1755919247379,2.79,197.88,197.75,2.67]
[1755919247672,2.79,197.88,197.76,9.57447517]
[1755919247874,2.79,197.84,197.77,4.81663172]
[1755919248183,2.79,197.84,197.78,4.81663172]
[1755919248475,2.79,197.84,197.75,7.7288]
[1755919248680,2.79,197.84,197.77,2.67]
[1755919248681,7.8467,197.84,197.77,2.67]
[1755919248877,2.79,197.84,197.78,4.81755307]
[1755919249070,2.79,197.84,197.77,2.67]
[1755919249269,2.79,197.84,197.78,4.81750628]
[1755919249467,2.79,197.84,197.77,2.67]
[1755919249679,2.79,197.84,197.78,4.81928911]
[1755919249873,2.79,197.84,197.73,2.67]
[1755919250074,2.79,197.84,197.74,9.57952209]
[1755919250375,2.79,197.84,197.75,4.81907318]
[1755919250571,2.79,197.79,197.76,4.81907318]
[1755919250780,2.79,197.79,197.73,2.67]
[1755919250978,2.79,197.79,197.74,7.48809207]
[1755919251176,2.79,197.79,197.75,4.81809207]
[1755919251476,2.79,197.79,197.76,4.81809207]
[1755919251777,2.79,197.79,197.74,2.67]
[1755919251978,5.0572,197.82,197.76,2.67]
[1755919252873,7.8472,197.82,197.77,7.48812343]
[1755919253070,7.8472,197.82,197.77,2.67]
[1755919253270,2.79,197.81,197.77,2.67]
[1755919253479,7.8475,197.81,197.73,2.67]
[1755919253684,2.79,197.81,197.73,2.67]
[1755919253880,2.79,197.81,197.74,4.81811594]
[1755919254180,2.79,197.81,197.75,4.81811594]
[1755919254370,2.79,197.81,197.73,2.67]
[1755919254781,2.79,197.81,197.74,4.82070832]
[1755919254980,2.79,197.81,197.73,2.67]
[1755919255781,5.058,197.79,197.73,2.67]
[1755919256585,2.79,197.86,197.74,4.82432108]
[1755919256781,2.79,197.86,197.75,4.82432108]
[1755919256982,2.79,197.86,197.73,2.67]
[1755919257182,2.79,197.86,197.74,4.82404871]
[1755919257384,5.0573,197.82,197.75,4.82404871]
[1755919257583,5.0573,197.82,197.74,5.059]
[1755919257783,5.0573,197.82,197.75,4.82747205]
[1755919257991,5.0573,197.82,197.75,7.7288]
[1755919260295,2.79,197.86,197.76,2.67]
[1755919260496,2.79,197.86,197.77,4.82737394]
[1755919260698,2.79,197.86,197.79,2.67]
[1755919261090,2.79,197.86,197.75,2.67]
[1755919261291,2.79,197.86,197.76,4.82726765]
[1755919261494,5.0575,197.81,197.75,2.67]
[1755919262098,5.0575,197.81,197.76,4.82767972]
[1755919262299,7.8477,197.8,197.72,7.7295]
[1755919262499,7.8477,197.8,197.73,9.60721897]
[1755919262701,7.8477,197.8,197.74,4.83309742]
[1755919262896,5.0577,197.8,197.75,4.83309742]
[1755919263104,5.058,197.79,197.72,7.7295]
[1755919263399,2.79,197.8,197.73,9.61260517]
[1755919263602,2.79,197.8,197.74,4.83394441]
[1755919263797,2.73,197.79,197.68,2.66]
[1755919263996,2.73,197.79,197.69,9.72922427]
[1755919264192,2.73,197.79,197.7,9.72922427]
[1755919264395,2.73,197.79,197.71,9.72922427]
[1755919264598,2.73,197.79,197.72,9.72922427]
[1755919264799,2.73,197.79,197.68,2.66]
[1755919264800,2.73,197.79,197.73,4.83814462]
[1755919265003,2.73,197.79,197.68,2.66]
[1755919265004,25.2913,197.78,197.74,4.83897941]
[1755919265196,2.73,197.77,197.68,2.66]
[1755919265399,2.73,197.75,197.69,9.73174037]
[1755919265598,2.73,197.79,197.72,2.66]
[1755919265900,2.73,197.79,197.73,9.73125781]
[1755919266105,25.2857,197.83,197.74,4.83945362]
[1755919266106,2.73,197.83,197.74,4.83945362]
[1755919266405,2.73,197.83,197.75,9.72849284]
[1755919266705,2.73,197.83,197.76,4.83945362]
[1755919266706,5.0572,197.82,197.76,4.83945362]
[1755919267003,7.7872,197.82,197.77,4.83945362]
[1755919267205,5.0572,197.82,197.78,4.83945362]
[1755919267502,7.7875,197.81,197.73,2.66]
[1755919267703,7.7875,197.81,197.74,9.74498228]
[1755919267903,7.7875,197.81,197.75,9.74498228]
[1755919268098,7.7875,197.81,197.76,4.85651422]
[1755919268298,7.7875,197.81,197.77,4.85651422]
[1755919268497,7.7875,197.81,197.78,4.85651422]
[1755919268801,7.7875,197.81,197.73,2.66]
[1755919268998,7.7875,197.81,197.74,9.74357734]
[1755919269297,7.7875,197.81,197.75,9.74357734]
[1755919269498,7.7875,197.81,197.76,7.51573067]
[1755919269697,5.057,197.83,197.78,2.66]
[1755919269898,5.057,197.83,197.79,4.85573067]
[1755919270193,5.057,197.83,197.8,4.85573067]
[1755919270397,7.7862,197.86,197.81,4.85115306]
[1755919270600,7.7862,197.86,197.79,2.66]
[1755919270601,7.7862,197.86,197.82,4.85081404]
[1755919270798,7.7862,197.86,197.79,2.66]
[1755919270997,7.7862,197.86,197.8,4.85083126]
[1755919271198,2.73,197.85,197.81,4.85083126]
[1755919271399,2.73,197.85,197.82,4.85083126]
[1755919271601,5.0562,197.86,197.83,4.85039692]
[1755919271909,5.0562,197.86,197.82,2.66]
[1755919272206,7.7856,197.88,197.83,4.85010488]
[1755919272408,5.0556,197.88,197.84,7.51010488]
[1755919272704,154.8346,197.91,197.84,2.66]
[1755919273297,154.8346,197.91,197.85,4.84826121]
[1755919273606,5.0558,197.88,197.84,2.66]
[1755919273803,5.0558,197.88,197.85,4.84759743]
[1755919274005,5.0558,197.88,197.84,2.66]
[1755919274202,5.0558,197.88,197.85,4.84759743]
[1755919274402,5.0558,197.88,197.84,2.66]
[1755919274907,339.98,197.93,197.85,4.84457143]
[1755919275107,2.73,197.96,197.86,4.84377183]
[1755919275307,2.73,197.96,197.87,2.66]
[1755919275903,7.7838,197.96,197.87,2.66]
[1755919276102,2.73,197.96,197.87,2.66]
[1755919276300,2.73,198.0,197.89,2.66]
[1755919276507,132.09,198.0,197.9,4.83329968]
[1755919276706,132.09,198.0,197.91,4.83271453]
[1755919276907,132.09,198.0,197.84,2.66]
[1755919276908,2.73,197.97,197.84,2.66]
[1755919277105,2.73,197.97,197.85,4.83607256]
[1755919277304,2.73,197.97,197.84,2.66]
[1755919277305,2.73,197.97,197.86,4.83607256]
[1755919277506,2.73,197.97,197.84,2.66]
[1755919277708,5.0545,197.93,197.85,4.83351189]
[1755919278001,2.73,197.96,197.86,4.83351189]
[1755919278203,5.0545,197.93,197.84,2.66]
[1755919278399,25.2693,197.95,197.85,4.83162106]
[1755919278612,25.2693,197.95,197.84,2.66]
[1755919278917,25.2693,197.95,197.85,4.83144057]
[1755919279110,25.2693,197.95,197.84,2.66]
[1755919279306,5.0548,197.91,197.85,4.83067543]
[1755919279509,5.0548,197.91,197.84,2.66]
[1755919279712,5.0548,197.91,197.85,4.82800359]
[1755919279906,5.0543,197.94,197.85,5.0561]
[1755919280106,2.73,197.96,197.86,7.4866167]
[1755919280314,2.73,197.96,197.86,2.66]
[1755919281409,5.0531,197.98,197.87,4.82267642]
[1755919281610,5.0531,197.98,197.9,2.66]
[1755919282209,5.0526,198.0,197.9,2.66]
[1755919282417,2.73,198.02,197.9,2.66]
[1755919282604,2.73,198.02,197.92,2.66]
[1755919282812,7.7821,198.02,197.92,7.7144]
[1755919283011,7.7821,198.02,197.93,2.66]
[1755919285519,5.0524,198.01,197.93,2.66]
[1755919286317,5.0518,198.03,197.93,2.66]
[1755919286512,2.73,198.03,197.93,2.66]
[1755919288320,25.2603,198.02,197.93,2.66]
[1755919289120,2.73,197.99,197.88,2.66]
[1755919289510,7.783,197.99,197.88,5.0554]
[1755919289715,7.783,197.99,197.89,2.66]
[1755919290613,7.783,197.99,197.89,7.7152]
[1755919290815,7.783,197.99,197.89,2.66]
[1755919291316,5.0532,197.98,197.9,5.0549]
[1755919292722,5.0526,198.0,197.91,2.66]
[1755919292913,368.90703198,198.04,197.91,2.66]
[1755919292914,343.64913198,198.04,197.91,2.66]
[1755919293119,3.60913198,198.04,197.91,2.66]
[1755919294324,5.0524,198.01,197.94,5.0539]
[1755919294523,5.0524,198.01,197.95,2.76]
[1755919295825,5.0524,198.01,197.95,7.8137]
[1755919297221,5.0527,198.0,197.93,5.0542]
[1755919297421,5.0527,198.0,197.96,2.76]
[1755919297626,5.0527,198.0,197.97,2.76]
[1755919297926,2.73,198.04,197.98,2.76]
[1755919299829,5.0519,198.03,197.98,2.76]
[1755919300126,131.74,198.05,197.98,2.76]
[1755919300717,5.0522,198.02,197.98,2.76]
[1755919301525,5.0522,198.02,197.96,7.8134]
[1755919302122,5.0516,198.04,197.96,7.8134]
[1755919303930,5.0519,198.03,197.96,7.8134]
[1755919305429,5.0521,198.02,197.96,7.8134]
[1755919305630,2.82,198.03,197.92,2.76]
[1755919305931,2.82,198.03,197.93,4.75573861]
[1755919306229,2.82,198.03,197.92,2.76]
[1755919306623,2.82,198.01,197.92,2.76]
[1755919307128,2.82,198.01,197.84,32.30568319]
[1755919307432,2.82,198.01,197.88,2.76]
[1755919307628,2.82,198.01,197.89,4.76008288]
[1755919307827,5.0531,197.98,197.9,4.76008288]
[1755919308033,2.82,198.01,197.91,4.75478909]
[1755919308226,2.82,198.01,197.92,2.76]
[1755919308422,5.053,197.99,197.92,2.76]
[1755919309130,5.053,197.99,197.92,7.8144]
[1755919309431,155.05563198,198.05,197.92,2.76]
[1755919309432,7.8732,197.98,197.92,2.76]
[1755919310934,2.82,197.98,197.92,2.76]
[1755919311526,7.8734,197.97,197.92,2.76]
[1755919311928,5.0534,197.97,197.92,2.76]
[1755919312130,25.259,198.04,197.91,2.76]
[1755919312131,5.0529,197.99,197.91,2.76]
[1755919312635,5.0529,197.99,197.92,4.76919331]
[1755919312837,5.0529,197.99,197.91,2.76]
[1755919313035,5.0529,197.99,197.92,4.76920227]
[1755919313332,5.0529,197.99,197.91,2.76]
[1755919313537,5.0529,197.99,197.92,4.77303592]
[1755919313837,5.0529,197.99,197.91,2.76]
[1755919314137,5.0529,197.99,197.92,4.77304327]
[1755919314436,5.0529,197.99,197.93,4.77714464]
[1755919314630,7.8729,197.99,197.94,7.53714464]
[1755919314835,7.8729,197.99,197.94,2.76]
[1755919316541,2.82,197.98,197.95,4.78665741]
[1755919316837,2.82,197.98,197.94,2.76]
[1755919317038,2.82,197.98,197.95,4.78752872]
[1755919317233,2.82,197.98,197.94,2.76]
[1755919317436,2.82,197.98,197.95,4.79179911]
[1755919317636,2.82,197.98,197.94,2.76]
[1755919317835,2.82,197.98,197.95,4.79342373]
[1755919318036,2.82,197.98,197.94,2.76]
[1755919318239,2.82,197.98,197.95,4.79346981]
[1755919318435,2.82,197.98,197.96,4.79346981]
[1755919318640,2.82,197.97,197.87,2.76]
[1755919318839,2.82,197.97,197.88,11.64833623]
[1755919319042,2.82,197.97,197.84,25.2831]
[1755919319043,2.82,197.97,197.89,12.43049854]
[1755919319248,2.82,197.97,197.9,9.67049854]
[1755919319549,7.8734,197.97,197.91,9.67049854]
[1755919319744,2.82,197.96,197.92,12.43049854]
[1755919319948,2.82,197.96,197.93,9.67049854]
[1755919320139,2.82,197.96,197.94,4.79755147]
[1755919320343,2.82,197.96,197.95,4.79755147]
[1755919322052,2.82,198.02,197.96,2.76]
[1755919322254,2.82,198.02,197.98,2.76]
[1755919322452,2.82,198.02,197.99,4.79755147]